bitfinex-derivatives/quotes_BTCF0:USTF0_20250827
["timestamp","ask_amount","ask_price","bid_price","bid_amount"]
[1756330159798,0.5143724,111900.0,111890.0,0.84786]
[1756330160102,0.8751724,111900.0,111890.0,0.84782]
[1756330160495,0.8751724,111900.0,111890.0,0.0001]
[1756330160693,0.8751724,111900.0,111890.0,0.84782]
[1756330163607,0.8751724,111900.0,111890.0,0.84778]
[1756330163900,0.8751724,111900.0,111890.0,0.0001]
[1756330164108,1.27088504,111900.0,111890.0,0.84778]
[1756330164602,0.8751724,111900.0,111890.0,0.84778]
[1756330166408,0.8751724,111900.0,111890.0,0.0001]
[1756330166602,0.89511533,111900.0,111890.0,0.84774]
[1756330168002,0.89511533,111900.0,111890.0,0.8477]
[1756330170204,0.89511533,111900.0,111890.0,0.84766]
[1756330174404,0.89511533,111900.0,111890.0,0.8477]
[1756330175114,0.53431533,111900.0,111890.0,0.8477]
[1756330175510,0.53431533,111900.0,111890.0,1.24341264]
[1756330179032,0.53431533,111900.0,111880.0,0.0001]
[1756330179033,0.2609856,111890.0,111880.0,0.0001]
[1756330179231,0.2609936,111880.0,111870.0,0.50526]
[1756330179530,1.01750624,111880.0,111870.0,0.50516]
[1756330180333,0.0893815,111870.0,111860.0,0.75661264]
[1756330180633,0.1901495,111860.0,111850.0,2.45637264]
[1756330180934,0.1901495,111860.0,111850.0,3.30363264]
[1756330181634,0.1881495,111860.0,111850.0,3.30363264]
[1756330182032,0.1861495,111860.0,111850.0,3.30363264]
[1756330182230,0.1861495,111860.0,111850.0,3.30663264]
[1756330182739,0.1861495,111860.0,111850.0,3.30963264]
[1756330182938,0.1861495,111860.0,111850.0,2.91388]
[1756330183131,0.1861495,111860.0,111850.0,3.30959264]
[1756330183330,0.1861495,111860.0,111850.0,2.06656]
[1756330183538,0.1861495,111860.0,111850.0,2.91392]
[1756330183832,0.1861495,111860.0,111850.0,1.70576]
[1756330184040,1.01152214,111860.0,111850.0,0.85332]
[1756330184634,0.6158095,111860.0,111850.0,0.85332]
[1756330186838,0.2550095,111860.0,111850.0,0.85332]
[1756330187232,0.6158095,111860.0,111850.0,0.85332]
[1756330188426,0.1821495,111860.0,111850.0,1.24903264]
[1756330188635,0.2550095,111860.0,111850.0,1.24903264]
[1756330189939,0.2550095,111860.0,111850.0,0.85332]
[1756330190142,0.2550095,111860.0,111850.0,1.24903264]
[1756330194038,0.2550095,111860.0,111850.0,0.40171264]
[1756330194243,0.2550095,111860.0,111850.0,1.24899264]
[1756330197343,0.6158095,111860.0,111850.0,0.006]
[1756330197543,1.26152214,111860.0,111850.0,0.006]
[1756330197741,1.26152214,111860.0,111850.0,0.0061]
[1756330200344,0.2592679,111850.0,111840.0,0.0001]
[1756330200555,1.01578054,111850.0,111840.0,0.84712]
[1756330201247,0.6200679,111850.0,111840.0,0.84712]
[1756330201852,0.6230679,111850.0,111840.0,0.84712]
[1756330202152,0.6230679,111850.0,111840.0,1.24283264]
[1756330202654,0.1214879,111850.0,111840.0,1.49283264]
[1756330202853,0.1244879,111850.0,111840.0,1.49283264]
[1756330203147,0.19434606,111850.0,111840.0,1.85363264]
[1756330203452,0.26890606,111850.0,111840.0,1.85363264]
[1756330203649,0.1990479,111850.0,111840.0,1.85363264]
[1756330204048,0.1244879,111850.0,111840.0,1.85363264]
[1756330204244,0.1578679,111850.0,111840.0,1.85363264]
[1756330204454,0.1990479,111850.0,111840.0,1.85363264]
[1756330207550,0.1990479,111850.0,111840.0,0.6108]
[1756330207751,1.02178054,111850.0,111840.0,0.25]
[1756330207951,0.2592759,111840.0,111830.0,0.84706]
[1756330208150,0.6200759,111840.0,111830.0,0.84696]
[1756330209056,0.2410539,111830.0,111820.0,0.39581264]
[1756330209259,0.2410539,111830.0,111820.0,1.24267264]
[1756330209460,0.1998739,111830.0,111820.0,1.60347264]
[1756330209660,0.1664939,111830.0,111820.0,1.60347264]
[1756330210360,0.1185039,111830.0,111820.0,1.69289454]
[1756330210757,0.1195039,111830.0,111820.0,1.60347264]
[1756330211156,0.1215039,111830.0,111820.0,1.20776]
[1756330211461,0.1482639,111830.0,111820.0,1.60343264]
[1756330211650,0.0894219,111820.0,111810.0,2.45608605]
[1756330211856,0.1518919,111820.0,111810.0,3.30290605]
[1756330212160,0.12756947,111820.0,111810.0,3.30290605]
[1756330212658,0.16874947,111820.0,111810.0,2.90719341]
[1756330212859,0.20212947,111820.0,111810.0,2.94306605]
[1756330213862,0.20212947,111820.0,111810.0,1.70036]
[1756330214062,0.20212947,111820.0,111810.0,2.54724]
[1756330215161,0.0894219,111820.0,111810.0,3.30375264]
[1756330215563,0.0894219,111820.0,111810.0,3.64318254]
[1756330215959,0.0001,111830.0,111820.0,0.0894219]
[1756330216260,0.0894139,111830.0,111820.0,0.84592924]
[1756330216665,0.1186009,111840.0,111830.0,0.0894139]
[1756330216865,0.1185009,111840.0,111830.0,1.69276654]
[1756330217268,0.1185958,111850.0,111840.0,0.0894058]
[1756330217562,0.1184958,111850.0,111840.0,0.84591844]
[1756330217764,0.1184958,111850.0,111840.0,0.75651264]
[1756330217972,0.1452558,111850.0,111840.0,0.75651264]
[1756330218274,0.1998658,111850.0,111840.0,0.75651264]
[1756330218667,0.089495,111860.0,111850.0,0.0893977]
[1756330218868,0.1185761,111870.0,111860.0,0.0893897]
[1756330219160,0.0001,111870.0,111860.0,0.84590234]
[1756330219364,0.0001,111870.0,111860.0,1.69266234]
[1756330219970,0.0001,111870.0,111860.0,0.84590234]
[1756330220171,0.97267438,111900.0,111890.0,0.04715]
[1756330220368,0.98176615,111900.0,111890.0,0.86507]
[1756330220563,0.98176615,111900.0,111890.0,0.89387]
[1756330222164,1.01085615,111900.0,111890.0,0.89387]
[1756330222364,1.01085615,111900.0,111890.0,0.04715]
[1756330222567,0.61514351,111900.0,111890.0,0.89375]
[1756330222772,1.02485615,111900.0,111890.0,0.89575]
[1756330222969,0.67803311,111900.0,111890.0,0.89575]
[1756330223170,0.28232047,111900.0,111890.0,1.29146264]
[1756330223368,0.014,111900.0,111890.0,1.74162824]
[1756330223566,0.014,111900.0,111890.0,1.74062824]
[1756330223567,0.01,111900.0,111890.0,1.74062824]
[1756330223766,0.01,111900.0,111890.0,1.74054824]
[1756330224072,0.0993576,111900.0,111890.0,1.74054824]
[1756330224268,0.0993576,111900.0,111890.0,0.89402824]
[1756330224473,0.0993576,111900.0,111890.0,1.74050824]
[1756330225369,0.01,111900.0,111890.0,1.99050824]
[1756330225771,0.0993576,111900.0,111890.0,1.14402824]
[1756330226463,0.0993576,111900.0,111890.0,1.99038824]
[1756330227570,0.1284476,111900.0,111890.0,1.14402824]
[1756330227779,0.0993576,111900.0,111890.0,1.99034824]
[1756330228975,0.0993576,111900.0,111890.0,1.99030824]
[1756330229366,0.0993576,111900.0,111890.0,1.14402824]
[1756330229573,0.0993576,111900.0,111890.0,1.99026824]
[1756330229773,0.0993576,111900.0,111890.0,1.99022824]
[1756330230378,0.0993576,111900.0,111890.0,1.14402824]
[1756330230676,0.0993576,111900.0,111890.0,1.99018824]
[1756330231777,0.0973576,111900.0,111890.0,1.99018824]
[1756330232479,0.0913576,111900.0,111890.0,1.98918824]
[1756330232780,0.0923576,111900.0,111890.0,1.98918824]
[1756330234281,0.003,111900.0,111890.0,1.98918824]
[1756330234486,0.003,111900.0,111890.0,1.73918824]
[1756330234874,0.003,111900.0,111890.0,0.89302824]
[1756330235077,0.003,111900.0,111890.0,1.73898824]
[1756330235782,0.2051976,111900.0,111890.0,1.73898824]
[1756330235983,0.2394376,111900.0,111890.0,1.73898824]
[1756330236281,0.001,111900.0,111890.0,1.79783824]
[1756330236478,0.0893576,111900.0,111890.0,1.79783824]
[1756330236679,0.0913576,111900.0,111890.0,1.79783824]
[1756330237877,0.002,111900.0,111890.0,1.79783824]
[1756330238582,0.0913576,111900.0,111890.0,1.79783824]
[1756330238783,0.0913576,111900.0,111890.0,1.79793824]
[1756330239383,0.089454,111910.0,111900.0,0.1557776]
[1756330239574,0.089448,111920.0,111910.0,0.2397196]
[1756330239873,0.089348,111920.0,111910.0,1.48125224]
[1756330240275,0.089348,111920.0,111910.0,1.84205224]
[1756330240476,0.222468,111920.0,111910.0,0.43536]
[1756330240676,0.90542064,111920.0,111910.0,0.99619]
[1756330240884,0.092348,111920.0,111910.0,1.75270264]
[1756330241075,0.092348,111920.0,111910.0,1.84205234]
[1756330241575,0.092348,111920.0,111910.0,0.99633234]
[1756330241779,0.092348,111920.0,111910.0,1.84197234]
[1756330242188,0.092348,111920.0,111910.0,1.91475926]
[1756330242485,0.095348,111920.0,111910.0,1.91475926]
[1756330242684,0.095348,111920.0,111910.0,1.06911926]
[1756330243085,0.095348,111920.0,111910.0,1.91471926]
[1756330246091,0.129588,111920.0,111910.0,1.91463926]
[1756330247185,0.194598,111920.0,111910.0,1.46444956]
[1756330247792,0.194598,111920.0,111910.0,1.82524956]
[1756330247992,0.194598,111920.0,111910.0,1.46444956]
[1756330248186,0.194598,111920.0,111910.0,1.82524956]
[1756330248587,0.156778,111920.0,111910.0,1.46444956]
[1756330248789,0.095348,111920.0,111910.0,1.82524956]
[1756330248987,0.095348,111920.0,111910.0,1.91459926]
[1756330250895,0.095348,111920.0,111910.0,1.06911926]
[1756330251097,0.095348,111920.0,111910.0,1.82508956]
[1756330251896,0.095348,111920.0,111910.0,1.91443926]
[1756330253897,0.11962503,111920.0,111910.0,1.91443926]
[1756330254097,0.11962503,111920.0,111910.0,1.82508956]
[1756330254401,0.11962503,111920.0,111910.0,1.82504956]
[1756330255496,0.11962503,111920.0,111910.0,1.82496956]
[1756330255798,0.89778503,111920.0,111910.0,1.39138264]
[1756330257290,0.89778503,111920.0,111910.0,0.54618264]
[1756330257492,0.89778503,111920.0,111910.0,1.39134264]
[1756330259003,1.29349767,111920.0,111910.0,0.15047]
[1756330259295,0.89778503,111920.0,111910.0,0.99555]
[1756330260403,1.29349767,111920.0,111910.0,0.10865]
[1756330260599,0.2560197,111910.0,111900.0,0.15524]
[1756330260898,0.64109673,111910.0,111900.0,1.00028]
[1756330261399,0.89109673,111910.0,111900.0,0.13584]
[1756330261598,0.89109673,111910.0,111900.0,0.845]
[1756330261903,0.89309673,111910.0,111900.0,0.845]
[1756330262102,0.89309673,111910.0,111900.0,0.89195]
[1756330262402,0.89309673,111910.0,111900.0,0.97235]
[1756330262701,0.89309673,111910.0,111900.0,0.9937]
[1756330263102,0.89509673,111910.0,111900.0,0.9937]
[1756330263398,0.72842673,111910.0,111900.0,0.9937]
[1756330263589,0.11762673,111910.0,111900.0,1.75021264]
[1756330264595,0.14518673,111910.0,111900.0,1.75021264]
[1756330264799,0.17793673,111910.0,111900.0,1.75021264]
[1756330265197,0.11762673,111910.0,111900.0,1.75021264]
[1756330265600,0.11762673,111910.0,111900.0,1.83957034]
[1756330265803,0.11762673,111910.0,111900.0,1.75021264]
[1756330267306,0.0933497,111910.0,111900.0,1.75021264]
[1756330268205,0.0408597,111910.0,111900.0,2.08957024]
[1756330268406,0.0735997,111910.0,111900.0,2.08957024]
[1756330268609,0.0893472,111920.0,111910.0,0.0893464]
[1756330268803,0.1169097,111910.0,111900.0,0.3608]
[1756330269103,0.1169097,111910.0,111900.0,1.20564]
[1756330269305,0.0893497,111910.0,111900.0,1.20564]
[1756330269902,0.0893497,111910.0,111900.0,0.75651264]
[1756330270211,0.2373997,111910.0,111900.0,1.60131264]
[1756330270404,0.12740598,111910.0,111900.0,1.69112264]
[1756330270606,0.17640598,111910.0,111900.0,1.76000264]
[1756330270811,0.1403497,111910.0,111900.0,1.76000264]
[1756330271110,0.0913497,111910.0,111900.0,1.76000264]
[1756330272199,0.1917197,111910.0,111900.0,1.75996264]
[1756330272507,0.2580197,111910.0,111900.0,1.75996264]
[1756330272709,0.2580197,111910.0,111900.0,0.49227]
[1756330272915,0.5080197,111910.0,111900.0,0.95334]
[1756330273114,0.5080197,111910.0,111900.0,0.97619]
[1756330273814,0.5080197,111910.0,111900.0,0.13147]
[1756330274013,0.5080197,111910.0,111900.0,0.97615]
[1756330276020,0.5080197,111910.0,111900.0,1.00337]
[1756330277022,0.0913497,111910.0,111900.0,1.75988264]
[1756330277325,0.0913497,111910.0,111900.0,2.09924034]
[1756330278124,0.002,111910.0,111900.0,2.09924034]
[1756330278323,0.0893472,111920.0,111910.0,0.2021797]
[1756330278620,0.0893472,111920.0,111910.0,0.95869234]
[1756330279025,0.0893472,111920.0,111910.0,1.03029984]
[1756330279320,0.0893472,111920.0,111910.0,1.03039984]
[1756330279519,0.2580172,111920.0,111910.0,0.47373]
[1756330279718,0.5080172,111920.0,111910.0,0.91195]
[1756330280125,1.26452984,111920.0,111910.0,0.91195]
[1756330280517,0.5080172,111920.0,111910.0,1.35320264]
[1756330280718,0.0933472,111920.0,111910.0,1.35320264]
[1756330280922,0.1209072,111920.0,111910.0,1.35320264]
[1756330281830,0.0933472,111920.0,111910.0,1.51421702]
[1756330282026,0.0933472,111920.0,111910.0,1.78566732]
[1756330282027,0.1209072,111920.0,111910.0,1.78566732]
[1756330282529,0.1209072,111920.0,111910.0,1.78558732]
[1756330282828,0.2600172,111920.0,111910.0,1.78558732]
[1756330283030,0.2600172,111920.0,111910.0,0.94110732]
[1756330283230,0.2600172,111920.0,111910.0,1.78558732]
[1756330283630,0.2600172,111920.0,111910.0,1.71392264]
[1756330284018,0.1699072,111920.0,111910.0,1.71392264]
[1756330284219,0.0933472,111920.0,111910.0,1.71392264]
[1756330284627,0.1209072,111920.0,111910.0,1.71392264]
[1756330287836,0.1536572,111920.0,111910.0,1.71392264]
[1756330288527,0.1209072,111920.0,111910.0,1.71392264]
[1756330289733,0.1231572,111920.0,111910.0,1.71392264]
[1756330292135,0.2444372,111920.0,111910.0,1.71372264]
[1756330292337,0.1726372,111920.0,111910.0,1.71372264]
[1756330292533,0.1231572,111920.0,111910.0,1.71372264]
[1756330293134,0.0933472,111920.0,111910.0,1.71372264]
[1756330293332,0.0933472,111920.0,111910.0,1.80307264]
[1756330294231,0.0933472,111920.0,111910.0,1.87409692]
[1756330295139,0.1231572,111920.0,111910.0,1.87409692]
[1756330298037,0.1231572,111920.0,111910.0,1.47838428]
[1756330298244,0.1567172,111920.0,111910.0,1.87409692]
[1756330298538,0.2290572,111920.0,111910.0,1.78466692]
[1756330298842,0.6234172,111920.0,111910.0,1.32720264]
[1756330299042,0.2626172,111920.0,111910.0,1.32720264]
[1756330300137,0.2626172,111920.0,111910.0,0.93149]
[1756330300332,0.2626172,111920.0,111910.0,0.95705]
[1756330301336,0.2444372,111920.0,111910.0,1.35276264]
[1756330301640,0.2626172,111920.0,111910.0,0.95701]
[1756330301835,0.2626172,111920.0,111910.0,1.35272264]
[1756330302037,0.6234172,111920.0,111910.0,0.93141]
[1756330302238,0.6234172,111920.0,111910.0,0.08737]
[1756330302543,1.01912984,111920.0,111910.0,0.87169]
[1756330302730,1.01912984,111920.0,111910.0,0.91221]
[1756330303442,0.6234172,111920.0,111910.0,0.93106]
[1756330303636,0.2626172,111920.0,111910.0,0.95662]
[1756330304138,0.6234172,111920.0,111910.0,0.95662]
[1756330304333,0.6234172,111920.0,111910.0,0.11258]
[1756330304537,0.6234172,111920.0,111910.0,0.93102]
[1756330305537,0.6234172,111920.0,111910.0,0.95658]
[1756330306244,0.2626172,111920.0,111910.0,0.95658]
[1756330306638,0.2626172,111920.0,111910.0,1.35229264]
[1756330307446,0.2626172,111920.0,111910.0,0.95658]
[1756330310641,0.0933472,111920.0,111910.0,1.44164254]
[1756330311147,0.0933472,111920.0,111910.0,1.80244254]
[1756330312353,0.0933472,111920.0,111910.0,2.12249182]
[1756330313048,0.0933472,111920.0,111910.0,1.78298192]
[1756330313249,0.1231572,111920.0,111910.0,1.78298192]
[1756330316247,0.0933472,111920.0,111910.0,1.87233182]
[1756330317153,0.0933472,111920.0,111910.0,0.93914192]
[1756330317354,0.0933472,111920.0,111910.0,1.78290192]
[1756330317949,0.1231572,111920.0,111910.0,1.78290192]
[1756330318355,0.0933472,111920.0,111910.0,1.78290192]
[1756330319157,0.0933472,111920.0,111910.0,1.87225182]
[1756330320351,0.2302872,111920.0,111910.0,1.38710928]
[1756330320552,0.2642272,111920.0,111910.0,1.71277264]
[1756330320953,0.2251372,111920.0,111910.0,1.71277264]
[1756330321254,0.0923472,111920.0,111910.0,1.8747522]
[1756330321576,0.0001,111930.0,111920.0,0.1991919]
[1756330321750,0.089338,111930.0,111920.0,0.8999115]
[1756330321949,0.089338,111930.0,111920.0,0.95580454]
[1756330322555,1.589338,111930.0,111920.0,0.95580454]
[1756330323162,1.590338,111930.0,111920.0,0.95580454]
[1756330323855,0.090338,111930.0,111920.0,0.95580454]
[1756330324157,0.001,111930.0,111920.0,0.95580454]
[1756330324353,1.501,111930.0,111920.0,0.95580454]
[1756330324757,0.001,111930.0,111920.0,1.35155718]
[1756330325151,0.0903342,111930.0,111920.0,2.19507718]
[1756330325351,0.001,111930.0,111920.0,2.19507718]
[1756330326248,0.001,111930.0,111920.0,1.80813874]
[1756330326758,0.001,111930.0,111920.0,2.45385138]
[1756330327856,1.5894314,111940.0,111930.0,0.1991842]
[1756330328058,1.5893314,111940.0,111930.0,0.95579684]
[1756330328856,1.6191514,111940.0,111930.0,0.95579684]
[1756330329051,1.7599214,111940.0,111930.0,1.70990264]
[1756330329254,1.7619214,111940.0,111930.0,1.70990264]
[1756330329455,1.7619214,111940.0,111930.0,1.70986264]
[1756330329856,1.7619214,111940.0,111930.0,0.86646264]
[1756330330057,1.7629214,111940.0,111930.0,1.68430264]
[1756330330259,1.7629214,111940.0,111930.0,1.70986264]
[1756330330459,2.0129214,111940.0,111930.0,0.84354]
[1756330330660,2.40863404,111940.0,111930.0,0.86998]
[1756330330854,2.40863404,111940.0,111930.0,0.02658]
[1756330331061,2.76943404,111940.0,111930.0,0.8435]
[1756330332560,2.76943404,111940.0,111930.0,0.84346]
[1756330333769,2.76943404,111940.0,111930.0,0.00014]
[1756330333965,2.76943404,111940.0,111930.0,0.80386]
[1756330334164,2.3737214,111940.0,111930.0,0.80386]
[1756330334362,2.76943404,111940.0,111930.0,0.80386]
[1756330334763,2.76943404,111940.0,111930.0,0.00014]
[1756330334963,2.76943404,111940.0,111930.0,0.84346]
[1756330335164,2.76943404,111940.0,111930.0,0.00014]
[1756330335364,2.76943404,111940.0,111930.0,0.84342]
[1756330335765,0.0893343,111930.0,111920.0,4e-05]
[1756330335966,0.0893343,111930.0,111920.0,0.84332]
[1756330335967,1.01643694,111930.0,111920.0,0.84332]
[1756330336669,0.2599402,111910.0,111900.0,0.86683264]
[1756330336870,0.2599402,111910.0,111900.0,1.71011264]
[1756330337872,0.2599402,111910.0,111900.0,1.71111264]
[1756330338370,0.26876633,111910.0,111900.0,1.3154]
[1756330338672,0.26876633,111910.0,111900.0,1.68555264]
[1756330339173,0.26876633,111910.0,111900.0,1.68755264]
[1756330339373,0.26876633,111910.0,111900.0,1.71311264]
[1756330339570,0.27076633,111910.0,111900.0,1.71011264]
[1756330340573,0.27176633,111910.0,111900.0,1.71011264]
[1756330341579,0.27176633,111910.0,111900.0,1.68455264]
[1756330341780,0.27176633,111910.0,111900.0,1.71011264]
[1756330342181,0.27176633,111910.0,111900.0,1.3144]
[1756330342578,1.09419449,111910.0,111900.0,0.02648]
[1756330342882,1.09419449,111910.0,111900.0,0.86976]
[1756330342883,1.16093449,111910.0,111900.0,0.86976]
[1756330343382,1.25028469,111910.0,111900.0,0.86976]
[1756330343580,1.25028469,111910.0,111900.0,0.96274]
[1756330343779,1.25028469,111910.0,111900.0,0.98146]
[1756330344884,1.25028469,111910.0,111900.0,1.01049]
[1756330345086,0.85457205,111910.0,111900.0,1.01049]
[1756330345279,0.49377205,111910.0,111900.0,1.01049]
[1756330345678,0.85457205,111910.0,111900.0,1.01049]
[1756330349095,1.25028469,111910.0,111900.0,1.01049]
[1756330352084,1.25028469,111910.0,111900.0,0.16721]
[1756330352291,1.25028469,111910.0,111900.0,1.01045]
[1756330352898,1.25028469,111910.0,111900.0,0.98142]
[1756330353098,1.25028469,111910.0,111900.0,1.0097]
[1756330354104,1.25028469,111910.0,111900.0,0.16646]
[1756330354397,1.25028469,111910.0,111900.0,1.0097]
[1756330354596,1.25028469,111910.0,111900.0,1.0098]
[1756330359209,1.25028469,111910.0,111900.0,0.16656]
[1756330359406,1.25028469,111910.0,111900.0,1.00968]
[1756330360703,1.25028469,111910.0,111900.0,1.01322]
[1756330363009,0.85457205,111910.0,111900.0,1.01322]
[1756330363209,1.25028469,111910.0,111900.0,1.01322]
[1756330363909,1.25028469,111910.0,111900.0,0.1701]
[1756330364105,1.25028469,111910.0,111900.0,1.01314]
[1756330365502,0.0893582,111900.0,111890.0,0.0397]
[1756330365706,1.01647084,111900.0,111890.0,0.95113]
[1756330366304,1.01647084,111900.0,111890.0,0.98591]
[1756330366803,1.01647084,111900.0,111890.0,0.02729]
[1756330367107,0.2599662,111890.0,111880.0,0.17129]
[1756330367409,1.01647884,111890.0,111880.0,1.01415]
[1756330369308,1.01647884,111890.0,111880.0,1.01515]
[1756330370323,1.01647884,111890.0,111880.0,0.10913]
[1756330370511,0.6207662,111890.0,111880.0,1.01511]
[1756330371016,1.01647884,111890.0,111880.0,1.01511]
[1756330371807,1.08957904,111890.0,111880.0,1.01511]
[1756330373917,1.08957904,111890.0,111880.0,0.91245]
[1756330374414,1.08957904,111890.0,111880.0,0.94723]
[1756330374614,1.08957904,111890.0,111880.0,0.98683]
[1756330375021,1.08957904,111890.0,111880.0,0.14391]
[1756330375317,1.08957904,111890.0,111880.0,0.98683]
[1756330375719,1.08957904,111890.0,111880.0,1.01511]
[1756330376116,0.6938664,111890.0,111880.0,1.01511]
[1756330376318,1.08957904,111890.0,111880.0,0.17219]
[1756330376517,1.08957904,111890.0,111880.0,1.01507]
[1756330376718,0.90107646,111890.0,111880.0,1.01507]
[1756330376920,0.99044266,111890.0,111880.0,1.01507]
[1756330378722,1.01844266,111890.0,111880.0,1.01507]
[1756330381525,1.08727266,111890.0,111880.0,1.01503]
[1756330383822,0.69156002,111890.0,111880.0,1.01503]
[1756330384023,1.08727266,111890.0,111880.0,1.01503]
[1756330385823,0.69156002,111890.0,111880.0,1.01503]
[1756330386125,1.08727266,111890.0,111880.0,1.01513]
[1756330388427,1.08727266,111890.0,111880.0,1.01497]
[1756330388630,1.08727266,111890.0,111880.0,0.17229]
[1756330388820,1.08727266,111890.0,111880.0,1.01497]
[1756330389017,1.08727266,111890.0,111880.0,1.01385]
[1756330389420,1.08727266,111890.0,111880.0,0.0066225]
[1756330389615,1.08727266,111890.0,111880.0,1e-07]
[1756330389825,1.11136062,111890.0,111880.0,1e-07]
[1756330391027,0.0893741,111880.0,111870.0,1e-07]
[1756330391225,1.86380674,111880.0,111870.0,0.0262101]
[1756330391630,1.86376674,111880.0,111870.0,0.0262101]
[1756330392025,1.86376674,111880.0,111870.0,0.1003201]
[1756330392425,1.86376674,111880.0,111870.0,0.1023201]
[1756330394129,1.86376674,111880.0,111870.0,0.1033201]
[1756330394430,1.86376674,111880.0,111870.0,0.0696601]
[1756330395324,0.2646221,111870.0,111860.0,1.01303]
[1756330395529,1.02113474,111870.0,111860.0,1.01303]
[1756330396434,1.02113474,111870.0,111860.0,1.01603]
[1756330397926,1.02113474,111870.0,111860.0,1.01803]
[1756330400834,0.6254221,111870.0,111860.0,1.01803]
[1756330401035,1.02113474,111870.0,111860.0,1.01803]
[1756330401232,1.02113474,111870.0,111860.0,0.17539]
[1756330401433,1.02113474,111870.0,111860.0,1.01787]
[1756330401739,1.02113474,111870.0,111860.0,0.17539]
[1756330402035,1.02113474,111870.0,111860.0,1.01787]
[1756330404833,1.02113474,111870.0,111860.0,1.01791]
[1756330407331,0.92214032,111870.0,111860.0,1.01791]
[1756330409037,0.88818032,111870.0,111860.0,0.72214822]
[1756330409238,0.92209032,111870.0,111860.0,1.56446822]
[1756330410636,0.92209032,111870.0,111860.0,1.56442822]
[1756330410836,0.92209032,111870.0,111860.0,1.56452822]
[1756330412140,0.92209032,111870.0,111860.0,1.56444822]
[1756330414642,0.6253721,111870.0,111860.0,1.56444822]
[1756330414842,0.92209032,111870.0,111860.0,1.56444822]
[1756330415142,2.42209032,111870.0,111860.0,1.56444822]
[1756330415347,2.1253721,111870.0,111860.0,1.26773]
[1756330415543,2.42209032,111870.0,111860.0,1.56444822]
[1756330416844,2.1253721,111870.0,111860.0,1.56444822]
[1756330417037,2.42209032,111870.0,111860.0,1.56444822]
[1756330418443,2.42209032,111870.0,111860.0,1.56420822]
[1756330419546,2.42209032,111870.0,111860.0,0.42553]
[1756330419746,2.42209032,111870.0,111860.0,0.91372]
[1756330420051,2.42209032,111870.0,111860.0,1.01448]
[1756330421051,2.42209032,111870.0,111860.0,1.01148]
[1756330421346,2.44517029,111870.0,111860.0,0.94319]
[1756330423650,2.14845207,111870.0,111860.0,0.94319]
[1756330423851,2.44517029,111870.0,111860.0,0.94319]
[1756330424749,2.44517029,111870.0,111860.0,0.10131]
[1756330424946,2.44517029,111870.0,111860.0,0.94303]
[1756330425948,2.41126029,111870.0,111860.0,0.94303]
[1756330426249,2.44517029,111870.0,111860.0,1.23974822]
[1756330428750,2.44517029,111870.0,111860.0,0.10131]
[1756330428953,2.44517029,111870.0,111860.0,1.23962822]
[1756330430053,2.44517029,111870.0,111860.0,0.94291]
[1756330430449,2.14845207,111870.0,111860.0,0.94291]
[1756330430660,2.08437029,111870.0,111860.0,0.94291]
[1756330430850,2.44517029,111870.0,111860.0,1.23962822]
[1756330431853,2.44517029,111870.0,111860.0,0.94291]
[1756330432055,2.44517029,111870.0,111860.0,1.23962822]
[1756330434754,2.42509032,111870.0,111860.0,1.23962822]
[1756330434955,1.7675721,111870.0,111860.0,1.23962822]
[1756330435157,2.1283721,111870.0,111860.0,1.23962822]
[1756330435356,2.42509032,111870.0,111860.0,1.23962822]
[1756330436062,2.42509032,111870.0,111860.0,1.23934822]
[1756330436559,2.42509032,111870.0,111860.0,0.39802822]
[1756330436759,2.42509032,111870.0,111860.0,1.23930822]
[1756330436955,2.42509032,111870.0,111860.0,0.94259]
[1756330437163,2.42509032,111870.0,111860.0,1.23930822]
[1756330441163,2.42509032,111870.0,111860.0,0.94243]
[1756330441363,2.42509032,111870.0,111860.0,1.23914822]
[1756330441756,2.42509032,111870.0,111860.0,0.39802822]
[1756330441959,2.42509032,111870.0,111860.0,0.94239]
[1756330442257,2.42509032,111870.0,111860.0,0.0668]
[1756330442454,2.99746078,111870.0,111860.0,0.00014]
[1756330442864,2.97180854,111870.0,111860.0,0.00014]
[1756330443067,2.99745944,111870.0,111860.0,0.00014]
[1756330447265,2.97180854,111870.0,111860.0,0.00014]
[1756330447468,2.99809919,111870.0,111860.0,0.00014]
[1756330451670,0.23021214,111860.0,111850.0,0.0001]
[1756330451862,0.2102977,111850.0,111840.0,0.92508]
[1756330452062,0.86781592,111850.0,111840.0,0.92498]
[1756330452266,0.86781592,111850.0,111840.0,0.08426]
[1756330452464,0.91481592,111850.0,111840.0,0.92494]
[1756330452661,0.92378121,111850.0,111840.0,0.98385]
[1756330453464,0.92378121,111850.0,111840.0,1.01293]
[1756330454268,0.92378121,111850.0,111840.0,0.17325]
[1756330454471,0.92378121,111850.0,111840.0,0.89193]
[1756330454670,0.62706299,111850.0,111840.0,1.01385]
[1756330454860,0.92378121,111850.0,111840.0,1.01385]
[1756330455062,0.92378121,111850.0,111840.0,1.01285]
[1756330457070,0.62706299,111850.0,111840.0,1.01285]
[1756330457369,0.92378121,111850.0,111840.0,1.01285]
[1756330457872,0.62706299,111850.0,111840.0,1.01285]
[1756330458072,0.92378121,111850.0,111840.0,1.01285]
[1756330460269,0.92378121,111850.0,111840.0,0.17225]
[1756330460464,0.92378121,111850.0,111840.0,1.01269]
[1756330462473,0.92378121,111850.0,111840.0,0.17225]
[1756330462670,0.92378121,111850.0,111840.0,1.01265]
[1756330463277,0.92378121,111850.0,111840.0,0.98457]
[1756330463477,0.92378121,111850.0,111840.0,1.01265]
[1756330463878,0.92378121,111850.0,111840.0,0.17225]
[1756330464074,0.92378121,111850.0,111840.0,1.01261]
[1756330465080,0.92378121,111850.0,111840.0,0.97768]
[1756330465380,0.92378121,111850.0,111840.0,0.94535]
[1756330465674,0.92378121,111850.0,111840.0,0.05033]
[1756330465978,0.92378121,111850.0,111840.0,0.92558]
[1756330466179,0.92378121,111850.0,111840.0,0.94531]
[1756330466678,0.92378121,111850.0,111840.0,0.91038]
[1756330467079,0.92378121,111850.0,111840.0,0.94531]
[1756330467376,0.2573057,111840.0,111830.0,0.11628]
[1756330467581,1.21154214,111840.0,111830.0,1.00575]
[1756330468374,1.21154214,111840.0,111830.0,0.9093]
[1756330468574,1.21154214,111840.0,111830.0,0.999]
[1756330468880,1.21154214,111840.0,111830.0,1.0]
[1756330469780,1.21154214,111840.0,111830.0,0.15976]
[1756330471278,1.23106034,111840.0,111830.0,0.15976]
[1756330471583,1.23106034,111840.0,111830.0,0.15986]
[1756330472888,1.23106034,111840.0,111830.0,0.13067]
[1756330473187,1.23106034,111840.0,111830.0,0.0011]
[1756330475678,2.07114034,111840.0,111830.0,0.0011]